Cogmind - Beta 10.2 @@@ ROGUE MODE // 2021.01.22 @ 02:40:49 Player: Cape Result: Destroyed by G-47 Trooper with Particle Gun Performance ------------- Evolutions (2) 1000 Regions Visited (5) 1000 Robots Destroyed (24) 120 Value Destroyed (657) 657 Prototype IDs (0) 0 Alien Tech Used (0) 0 Bonus (-206) -206 TOTAL SCORE: 2571 Bonus ------- Friendly Fire -206 Cogmind --------- Core Integrity 0/550 Matter 81/300 Energy 47/100 System Corruption 3% Temperature Cool (85) Movement Core (200) Ox3 Location -8/Materials Parts ------- > --- POWER (1) -------- (None) > --- PROPULSION (4) --- (None) > --- UTILITY (2) ------ Small Storage Unit > --- WEAPON (4) ------- Gauss Cannon > --- INVENTORY (6) ---- Ion Engine Aluminum Leg Aluminum Leg Light Assault Rifle Peak State ------------ > --- POWER ------------ Light Nuclear Core > --- PROPULSION ------- Improved Carbon-fiber Leg Improved Carbon-fiber Leg Improved Carbon-fiber Leg Improved Carbon-fiber Leg > --- UTILITY ---------- Thermal Generator Small Storage Unit > --- WEAPON ----------- Gauss Cannon Gauss Cannon > --- INVENTORY -------- Ion Engine Aluminum Leg Aluminum Leg Aluminum Leg Light Assault Rifle Gauss Cannon [Rating: 31] Favorites ----------- Power Light Ion Engine Engine Light Ion Engine Power Core Light Nuclear Core Propulsion Carbon-fiber Leg Treads Light Treads Leg Carbon-fiber Leg Utility Small Storage Unit Device Thermal Generator Storage Small Storage Unit Weapon Mini Grenade Launcher Energy Gun Small Laser Ballistic Gun Light Assault Rifle Ballistic Cannon Gauss Cannon Launcher Mini Grenade Launcher Special Weapon Mining Laser Impact Weapon Maul Build | -11 -10 -10 -10 -9 -8 ------- Run | Scr Mat Min Exi Min Mat Slots Evolved 4 | . . . . . 4 Power . | . . . . . . Propulsion 2 | . . . . . 2 Utility . | . . . . . . Weapon 2 | . . . . . 2 Parts Attached 36 | 6 12 1 3 1 13 Power 6 | 1 1 . . 1 3 Engine 4 | 1 1 . . 1 1 Core 2 | . . . . . 2 Reactor . | . . . . . . Propulsion 14 | 2 6 . 2 . 4 Treads 2 | . 2 . . . . Leg 12 | 2 4 . 2 . 4 Wheel . | . . . . . . Hover . | . . . . . . Flight . | . . . . . . Utility 4 | 1 1 . 1 . 1 Device 1 | . . . . . 1 Storage 3 | 1 1 . 1 . . Processor . | . . . . . . Hackware . | . . . . . . Protection . | . . . . . . Artifact . | . . . . . . Weapon 12 | 2 4 1 . . 5 Energy Gun 1 | . . . . . 1 Energy Cannon . | . . . . . . Ballistic Gun 4 | 2 1 . . . 1 Ballistic Cannon 3 | . . . . . 3 Launcher 2 | . 2 . . . . Special Weapon 1 | . 1 . . . . Impact Weapon 1 | . . 1 . . . Slashing Weapon . | . . . . . . Piercing Weapon . | . . . . . . Special Melee Weapon . | . . . . . . Unidentified Prototypes . | . . . . . . Parts Lost 22 | . 6 1 . 1 14 Power 3 | . 1 . . . 2 Propulsion 8 | . 2 . . . 6 Utility 2 | . . 1 . . 1 Weapon 9 | . 3 . . 1 5 Highest Loss Streak 5 | . 4 2 . 1 5 Average Slot Usage (%) 67 | . 81 57 68 70 48 Engine 5 | . 12 . . 12 2 Leg 25 | . 25 28 28 28 20 Storage 11 | . 14 . 11 14 9 Ballistic Gun 5 | . 20 . . . . Ballistic Cannon 2 | . . . . . 10 Launcher 8 | . 2 14 14 14 2 Special Weapon 1 | . 3 . . . . Impact Weapon 5 | . . 14 14 1 . Naked Turns . | . . . . . . Heaviest Build 30 | 9 11 8 8 8 30 Greatest Support 72 | 20 20 20 30 30 72 Greatest Overweight (x) 6 | 2 3 . . . 6 Average Overweight (x) . | . . . . . . Largest Inventory Capacity 6 | 6 6 6 6 6 6 Average Capacity 5 | 5 6 4 5 6 6 Most Carried 6 | 3 6 4 6 6 6 Average Carried 5 | 1 4 4 5 6 5 Final Capacity 6 | 6 6 4 6 6 6 Final Carried 6 | 3 5 4 6 6 4 Class Distribution -------------------- 100% | Mutant Dominant Class ---------------- Mutant | -10/Materials Mutant | -10/Mines Mutant | -10/Exiles Mutant | -9/Mines Mutant | -8/Materials Resources | -11 -10 -10 -10 -9 -8 ----------- Run | Scr Mat Min Exi Min Mat Matter Collected 694 | 243 91 80 46 15 219 Remotely . | . . . . . . Salvage Created 555 | . 150 76 46 27 256 Parts 40 | . 17 2 3 8 10 Haulers Intercepted . | . . . . . . Recyclers Shooed . | . . . . . . Parts Field Recycled . | . . . . . . Retrieved Matter . | . . . . . . Parts Self-Destructed . | . . . . . . Prevented . | . . . . . . Kills | -11 -10 -10 -10 -9 -8 ------- Run | Scr Mat Min Exi Min Mat Combat Hostiles Destroyed 18 | . 6 2 . 3 7 Guns 4 | . 2 . . . 2 Cannons 5 | . . . . . 5 AOE 9 | . 4 2 . 3 . Classes Destroyed 9 | . 5 . . 1 3 Worker 1 | . 1 . . . . Builder 1 | . 1 . . . . Tunneler 1 | . . . . 1 . Recycler 1 | . 1 . . . . Operator 1 | . . . . . 1 Swarmer 6 | . 3 . . 3 . Grunt 10 | . 3 2 . . 5 Brawler 1 | . . . . . 1 Sentry 1 | . . . . . 1 Thug 1 | . . . 1 . . Best Kill Streak 9 | . 9 2 . 3 4 Combat Bots Only 6 | . 6 2 . 3 4 Max Kills in Single Turn 2 | . 2 1 1 2 1 Gunslinging . | . . . . . . Exploded 2 | . 1 1 . 2 . Melee . | . . . . . . Uniques/NPCs Destroyed . | . . . . . . Combat | -11 -10 -10 -10 -9 -8 -------- Run | Scr Mat Min Exi Min Mat Damage Taken 3128 | . 792 143 59 117 2017 Core 728 | . 90 58 4 13 563 Absorbed by Shields . | . . . . . . Core Remaining (%) 67 | 100 . . . 34 . Volleys Fired 76 | . 44 2 . 3 27 Largest 4 | . 2 1 . 1 4 Hottest 166 | . 100 30 . 30 166 Shots Fired 115 | . 64 2 2 3 44 Gun 45 | . 37 . . . 8 Cannon 34 | . . . . . 34 Launcher 14 | . 5 2 2 3 2 Special 22 | . 22 . . . . Kinetic 76 | . 37 . . . 39 Thermal 25 | . 22 . . . 3 Explosive 14 | . 5 2 2 3 2 Electromagnetic . | . . . . . . Robot Hit Streak 7 | . 6 2 2 5 7 Robot Miss Streak 4 | . 3 1 . . 4 Penetration Max 1 | . . . . . 1 Secondary Targets . | . . . . . . Shots Hit Robots 56 | . 24 1 2 3 26 Core Hits 34 | . 13 2 1 4 14 Critical Hits 6 | . . . . . 6 Critical Kills 3 | . . . . . 3 Critical Parts Destroyed 3 | . . . . . 3 Melee Attacks . | . . . . . . Impact . | . . . . . . Slashing . | . . . . . . Piercing . | . . . . . . Sneak Attacks . | . . . . . . Combat Hostiles . | . . . . . . Follow-up Attacks . | . . . . . . Damage Inflicted 1859 | . 680 126 106 264 683 Guns 243 | . 138 . . . 105 Cannons 505 | . . . . . 505 Explosions 1102 | . 542 126 106 264 64 Melee . | . . . . . . Ramming 9 | . . . . . 9 Kinetic 738 | . 138 . . . 600 Thermal 325 | . 315 . . . 10 Explosive 787 | . 227 126 106 264 64 Electromagnetic . | . . . . . . Impact . | . . . . . . Slashing . | . . . . . . Piercing . | . . . . . . Highest Corruption 5 | . 5 5 5 5 3 Average Corruption 4 | . 5 5 5 5 3 Corruption Purged . | . . . . . . Effects 35 | . 12 2 17 4 . Message Errors 7 | . 1 . 6 . . Matter Fused 8 | . 1 1 4 2 . Heat Flow Errors 7 | . 1 1 3 2 . Energy Discharges 1 | . 1 . . . . Parts Rejected 1 | . 1 . . . . Data Loss (minor) 5 | . 3 . 2 . . Misfires 2 | . . . 2 . . Targeting Errors 4 | . 4 . . . . Overload Shots . | . . . . . . Overflow Damage 185 | . 149 2 . 4 30 Projectiles 25 | . . . . . 25 Explosions 160 | . 149 2 . 4 5 Melee . | . . . . . . Knockbacks 4 | . . . . . 4 Impact . | . . . . . . Kinetic 3 | . . . . . 3 Secondary 1 | . . . . . 1 Self-Inflicted Damage 357 | . 84 83 60 112 18 Shots 9 | . 1 2 2 3 1 Rammed . | . . . . . . Targets Rammed 1 | . . . . . 1 Kicked 1 | . . . . . 1 Crushed . | . . . . . . Highest Temperature 271 | . 244 88 245 271 245 Average Temperature 64 | . 31 52 117 116 89 Received Heat Transfer 1224 | . 201 33 . . 990 Siege Activations . | . . . . . . Robots Corrupted . | . . . . . . Combat Hostiles . | . . . . . . Parts Fried . | . . . . . . Impact Corruptions . | . . . . . . Robots Melted . | . . . . . . Combat Hostiles . | . . . . . . Parts Melted . | . . . . . . Heat Transferred 225 | . 200 . . . 25 Parts Sabotaged . | . . . . . . Parts Stolen . | . . . . . . Parts Stripped . | . . . . . . Power Chain Reactions . | . . . . . . Missiles Intercepted . | . . . . . . Alert | -11 -10 -10 -10 -9 -8 ------- Run | Scr Mat Min Exi Min Mat Peak Influence 237 | . 225 57 . 80 237 Initial 31 | . . 17 . . 31 Average 76 | . 32 54 . 71 150 Maximum Alert Level 1 | . 1 . . . 1 Low Security (%) 90 | 100 97 100 . 100 71 Level 1 9 | . 2 . . . 28 Level 2 . | . . . . . . Level 3 . | . . . . . . Level 4 . | . . . . . . Level 5 . | . . . . . . High Security . | . . . . . . Max Security . | . . . . . . Squads Dispatched 4 | . 2 . . . 2 Investigation . | . . . . . . Extermination . | . . . . . . Reinforcement 4 | . 2 . . . 2 Assault . | . . . . . . Garrison . | . . . . . . Intercept . | . . . . . . Construction Impeded 1 | . . . . . 1 Haulers Reinforced . | . . . . . . Stealth | -11 -10 -10 -10 -9 -8 --------- Run | Scr Mat Min Exi Min Mat Distress Signals . | . . . . . . Communications Jammed . | . . . . . . Distress Signals . | . . . . . . Times Spotted 40 | . 16 2 . 3 19 Peak Tracking Total 11 | . 5 2 . 3 11 Tactical Retreats 3 | . 1 . . . 2 Traps | -11 -10 -10 -10 -9 -8 ------- Run | Scr Mat Min Exi Min Mat Traps Triggered . | . . . . . . Indirectly . | . . . . . . Trap Hack Attempts . | . . . . . . Triggered . | . . . . . . Disarmed . | . . . . . . Reprogrammed . | . . . . . . Reused . | . . . . . . Traps Extracted . | . . . . . . Installed . | . . . . . . Triggered . | . . . . . . Machines | -11 -10 -10 -10 -9 -8 ---------- Run | Scr Mat Min Exi Min Mat Machines Disabled 6 | . 3 . . 1 2 Max in Single Turn 3 | . 3 . . 1 1 Machines Sabotaged . | . . . . . . Garrisons Compromised . | . . . . . . Overloaded Fab Kills . | . . . . . . Fab Network Shutdowns . | . . . . . . Hacking | -11 -10 -10 -10 -9 -8 --------- Run | Scr Mat Min Exi Min Mat Machines Accessed 4 | . . . 4 . . Terminals . | . . . . . . Fabricators . | . . . . . . Repair Stations . | . . . . . . Recycling Units . | . . . . . . Scanalyzers . | . . . . . . Garrison Access . | . . . . . . Total Hacks 4 | . . . 4 . . Successful 4 | . . . 4 . . Failed . | . . . . . . Catastrophic . | . . . . . . Database Lockouts . | . . . . . . Manual . | . . . . . . Terminals . | . . . . . . Fabricators . | . . . . . . Repair Stations . | . . . . . . Recycling Units . | . . . . . . Scanalyzers . | . . . . . . Garrison Access . | . . . . . . Terminal Hacks 4 | . . . 4 . . Record 4 | . . . 4 . . Fabricator Hacks . | . . . . . . Repair Station Hacks . | . . . . . . Recycling Unit Hacks . | . . . . . . Scanalyzer . | . . . . . . Garrison Access Hacks . | . . . . . . Unauthorized Hacks . | . . . . . . Terminals . | . . . . . . Fabricators . | . . . . . . Repair Stations . | . . . . . . Recycling Units . | . . . . . . Scanalyzers . | . . . . . . Garrison Access . | . . . . . . Data Cores Recovered . | . . . . . . Used . | . . . . . . Hacking Detections . | . . . . . . Full Trace Events . | . . . . . . Feedback Events . | . . . . . . Feedback Blocked . | . . . . . . Robot Schematics Acquired . | . . . . . . Robots Built . | . . . . . . Matter . | . . . . . . Time . | . . . . . . Total Robot Build Rating . | . . . . . . Part Schematics Acquired . | . . . . . . Parts Built . | . . . . . . Matter . | . . . . . . Time . | . . . . . . Total Part Build Rating . | . . . . . . Parts Repaired . | . . . . . . Time . | . . . . . . Parts Recycled . | . . . . . . Recycled Matter . | . . . . . . Retrieved Matter . | . . . . . . Retrieved Components . | . . . . . . Parts Scanalyzed . | . . . . . . Part Schematics Acquired . | . . . . . . Parts Damaged . | . . . . . . Bothacking | -11 -10 -10 -10 -9 -8 ------------ Run | Scr Mat Min Exi Min Mat Used RIF Installer . | . . . . . . Robots Hacked . | . . . . . . Non-combat . | . . . . . . Combat . | . . . . . . Robot Hacks Applied . | . . . . . . Relay Couplers Released . | . . . . . . Robots Rewired . | . . . . . . Allies Hacked . | . . . . . . Hacks Repelled . | . . . . . . Allies | -11 -10 -10 -10 -9 -8 -------- Run | Scr Mat Min Exi Min Mat Total Allies 1 | . . 1 . . . Largest Group 1 | . . 1 1 . . Highest-Rated Group 31 | . . 31 31 . . Highest-Rated Ally 31 | . . 31 31 . . Total Orders . | . . . . . . Ally Attacks . | . . . . . . Total Damage . | . . . . . . Kills . | . . . . . . Allies Corrupted . | . . . . . . Allies Melted . | . . . . . . Intel | -11 -10 -10 -10 -9 -8 ------- Run | Scr Mat Min Exi Min Mat Robot Analysis Total . | . . . . . . Derelict Logs Recovered 1 | . . . . 1 . Drone Launches . | . . . . . . Drone Recoveries . | . . . . . . Exploration | -11 -10 -10 -10 -9 -8 ------------- Run | Scr Mat Min Exi Min Mat Turns Passed 1859 | 56 465 69 688 211 370 Spaces Moved 1257 | 39 233 54 567 170 194 Core 46 | 8 1 . . . 37 Treads 32 | . 32 . . . . Legs 1179 | 31 200 54 567 170 157 Wheels . | . . . . . . Hover . | . . . . . . Flight . | . . . . . . Fastest Speed 50 | 50 120 120 120 120 120 Average Speed 124 | 114 125 120 120 120 140 Slowest Speed 350 | 150 200 120 120 120 350 Overloaded Moves . | . . . . . . Propulsion Burnouts . | . . . . . . Robots Hopped . | . . . . . . Cave-ins Triggered 1 | . 1 . . . . Exploration Rate (%) 32 | 3 48 9 91 29 16 Regions Visited 5 Branch Regions 3 Pre-discovered Areas . | . . . . . . Known Exits Taken . | . . . . . . Unknown Exits Taken 5 | 1 1 1 1 1 . Scrap Searched 1 | . . 1 . . . Spaces Dug 21 | . 21 . . . . Terrain Destroyed 172 | . 84 12 12 31 33 Melee . | . . . . . . Projectile 39 | . 22 . . . 17 AOE 133 | . 62 12 12 31 16 Terrain Rammed . | . . . . . . Walls Destroyed . | . . . . . . Machines Disabled . | . . . . . . Actions | -11 -10 -10 -10 -9 -8 --------- Run | Scr Mat Min Exi Min Mat Total 1402 | 47 304 56 574 173 248 Wait 8 | . 2 . . . 6 Move 1251 | 38 231 53 566 169 194 Hop . | . . . . . . Pick Up 17 | 3 10 . 2 . 2 Fast Attach 22 | 6 1 . 2 1 12 Attach 8 | . 6 1 . . 1 Detach 1 | . . . 1 . . Swap 6 | . 5 . 1 . . Drop 11 | . 4 . 2 . 5 Fire 76 | . 44 2 . 3 27 Melee . | . . . . . . Ram . | . . . . . . Kick 1 | . . . . . 1 Crush . | . . . . . . Escape Stasis 1 | . 1 . . . . Rewire . | . . . . . . Trap . | . . . . . . Miscellaneous . | . . . . . . Route ------- -11/Scrapyard -10/Materials (discovered 2 exits: [*Min x2]) -10/Mines (discovered 2 exits: [*Mat] / *Exi) -10/Exiles -9/Mines -8/Materials History --------- Turn | Location | Event 7 | -11/Scrapyard | Discovered new exit (range 15) 57 | -11/Scrapyard | Entered Materials 192 | -10/Materials | Crushed by falling debris 298 | -10/Materials | Discovered new exit (range 16) 305 | -10/Materials | Build established: Mutant 339 | -10/Materials | Discovered new exit (range 15) 469 | -10/Materials | Lost 4 parts (1p1n2w) 522 | -10/Materials | Entered Mines 525 | -10/Mines | Core integrity fell below 50% 559 | -10/Mines | Discovered new exit (range 6) 569 | -10/Mines | Received a Mining Laser from a helpful Derelict 581 | -10/Mines | Deemed a non-threat by the Exiles lab entrance 583 | -10/Mines | Discovered new exit (range 5) 591 | -10/Mines | Entered Exiles 591 | -10/Exiles | Found Exiles lab abandoned 591 | -10/Exiles | Accompanied by 1 ally 1264 | -10/Exiles | Discovered new exit (range 14) 1279 | -10/Exiles | Entered Mines 1289 | -9/Mines | Learned Materials trap positions 1290 | -9/Mines | Met a Derelict bent on vengeance 1475 | -9/Mines | Discovered new exit (range 12) 1490 | -9/Mines | Entered Materials 1490 | -8/Materials | Evolved 4 slots: Propulsion x2, Weapon x2 1491 | -8/Materials | Loaded intel: 21 trap records 1651 | -8/Materials | Lost 3 parts (1p2w) 1740 | -8/Materials | Core integrity fell below 50% 1834 | -8/Materials | Lost 4 parts (1p1u2w) 1855 | -8/Materials | Core integrity fell below 20% 1860 | -8/Materials | Destroyed by G-47 Trooper with Particle Gun Last Messages --------------- 01796_ Acquired 4 matter. 01799_ Gauss Cannon destroyed. 01839_ Acquired Shotgun. 01840_ Imp. Carbon-fiber Leg destroyed. 01840_ System corrupted by crushing effect (+3). 01846_ B-36 Bruiser destroyed. 01848_ Acquired 47 matter. 01850_ G-47 Trooper suffers critical hit. 01850_ G-47 Trooper destroyed. 01851_ Imp. Carbon-fiber Leg destroyed. 01854_ Shotgun destroyed. 01855_ Acquired 41 matter. 01856_ Dropped Aluminum Leg. 01857_ Imp. Carbon-fiber Leg destroyed. 01857_ U-05 Engineer builds a Door. 01858_ Slug penetrates G-47 Trooper. 01858_ G-47 Trooper suffers critical hit. 01858_ Destroyed Aluminum Leg. 01860_ G-47 Trooper suffers critical hit. 01860_ G-47 Trooper destroyed. Map ----- +----------------------------------------------------+ | ?????????????????????????????????????????????????? | | ?????????????????????????????????????????????????? | | ?????????????????????????????????????????????????? | | ?????????????????????????????????????????????????? | | ?????????????????????????????????????????????????? | | ?????????????????????????????????????????????????? | | ?????????????????????????????????????????????????? | | ?????????????????????????????????????????????????? | | ?????????????????????????????????????????????????? | | ?????????????????????????????????????????????????? | | ?????????????????????????????????????????????????? | | ?????????????????????????????????????????????????? | | ?????????????????????????????????????????????????? | | ?????????????????????????????????????????????????? | | ????????????????????????????????????????????????? | | ?????????????????????????????????????????????????? | | ?????????????????????????????????????????????????? | | ?????????????????????????????????????????????????? | | ?????????????????????????????????????????????????? | | ?????????????????????????????????????????????????? | | ?????????????????????????????????????????????????? | | ?????????????????????????????????????????????????? | | ?????????????????????########??????????????????"?? | | ?????????????????????# #?????????????????? ? | | ?????????????????????# #??????????????????""? | | ?????????????????????#!![@ #??????????????????"" | | ?????????????????????#gg%g! #???????????????????" | | ?????????????????????#!!g=Yg#???????????????????? | | ?????????????????????# g #????????????????????# | | ?????????????????########k######################## | | ???????????# u | | ???????????# | | ???????????# | | ???????????? ###+####### ##################### | | ?????????????????????????# #?????????????#^ | | ?????????????????????????# #?????????????#???^?? | | ?????????????????????????# #???????????????????? | | ?????????????????????????# #??????????????????^? | | ?????????????????????????# #???????????????^???? | | ?????????????????????????# ???????????????????? | | ?????????????????????????##+##????????????????^?^? | | ?????????????????????????????????????????????????? | | ?????????????????????????????????????????????????? | | ?????????????????????????????????????????????????? | | ?????????????????????????????????????????????????? | | ?????????????????????????????????????????????????? | | ????????????????????????????????????????????????## | | ????????????????????????????????????????????????# | | ????????????????????????????????????????????????# | | ????????????????????????????????????????????????# | +----------------------------------------------------+ Best States ------------- Heat Dissipation 31 Energy Generation 14 Energy Capacity 250 Matter Stores 283 Matter Capacity 300 Sight Range 16 Terrain Scan Density 10 Evasion (%) 40 Recoil Reduction 1 Item Schematics ----------------- None Robot Schematics ------------------ None Fabricated ------------ Nothing Alien Tech Used ----------------- None Achievements -------------- Maybe Next Time I'll Detach My Launcher Challenges ------------ None Game ------ Seed RefineryVariableInjector Manual? 0 Play Time 00:22:35 Cumulative 5.5 hours Start 2021.01.22 @ 02:22:08 End 2021.01.22 @ 02:40:49 Sessions 1 Manual Loads 0 Difficulty Rogue Special Mode None Game No. 9 Rogue 9 Adventurer 0 Explorer 0 Win Type - Total 0 Types 0/0/0/0/0/0/0/0/0 Lore% 2 Gallery% 8 Achievement% 8 Wizard Run 0 Options --------- ASCII 0 Keyboard 1 Movement Vi Keybinds 1 Fullscreen 1 Font 12/Terminus Map View 83x54 Tactical HUD 1 Map Filters NONE Filters NONE Steam 1 RUN: d1a5c368-2a4c-4088-8ab2-622c53afa4a4